bitfinex-derivatives/quotes_SOLF0:USTF0_20241229
["timestamp","ask_amount","ask_price","bid_price","bid_amount"]
[1735504137771,2.617,191.44,191.41,2.6173]
[1735504143379,8.40566351,191.46,191.38,3.04]
[1735504143579,2.6174,191.42,191.39,3.04]
[1735504147087,2.6175,191.41,191.39,3.04]
[1735504147287,8.40566351,191.42,191.39,3.04]
[1735504147683,2.6175,191.4,191.39,3.04]
[1735504152488,2.6172,191.43,191.39,3.04]
[1735504152786,69.6038669,191.47,191.39,3.04]
[1735504152982,8.40566351,191.45,191.39,3.04]
[1735504153887,2.6171,191.44,191.41,2.6174]
[1735504154883,2.6172,191.43,191.4,2.6175]
[1735504155079,8.40566351,191.41,191.36,3.04]
[1735504155683,3.04,191.48,191.37,8.40566351]
[1735504155883,8.40566351,191.44,191.37,8.40566351]
[1735504156383,2.6175,191.41,191.37,11.02346351]
[1735504156787,8.40566351,191.44,191.37,11.02346351]
[1735504157088,2.6176,191.4,191.37,11.02346351]
[1735504157491,8.40566351,191.42,191.36,5.6581]
[1735504158288,8.40566351,191.38,191.33,3.04]
[1735504158485,8.40566351,191.38,191.32,3.04]
[1735504159596,2.6181,191.36,191.32,5.6585]
[1735504160095,2.6181,191.36,191.32,2.6185]
[1735504160291,2.6181,191.36,191.32,3.04]
[1735504160490,2.6181,191.36,191.33,2.6185]
[1735504160895,2.6181,191.36,191.28,2.90721128]
[1735504160896,8.40566351,191.38,191.28,2.90721128]
[1735504161084,2.6184,191.34,191.29,11.44566351]
[1735504161693,2.6184,191.34,191.3,2.6188]
[1735504162995,8.40566351,191.34,191.28,2.90721128]
[1735504163196,2.6185,191.33,191.29,5.659]
[1735504165493,8.40566351,191.34,191.29,3.04]
[1735504165693,8.40566351,191.36,191.29,11.44566351]
[1735504166190,2.6182,191.35,191.31,2.6187]
[1735504166695,2.618,191.37,191.34,2.6183]
[1735504167797,13.09736351,191.41,191.35,8.40566351]
[1735504168091,1.5916,191.41,191.37,8.40566351]
[1735504168395,1.5916,191.41,191.38,2.6178]
[1735504168597,1.5916,191.41,191.37,8.40566351]
[1735504168792,2.6172,191.43,191.37,8.40566351]
[1735504170301,2.6173,191.42,191.37,8.40566351]
[1735504171605,2.6173,191.42,191.38,2.6178]
[1735504172198,2.6173,191.42,191.38,5.6578]
[1735504175604,2.6174,191.41,191.38,5.6578]
[1735504178905,8.40566351,191.44,191.38,3.04]
[1735504179105,8.40566351,191.42,191.36,3.04]
[1735504179306,8.40566351,191.42,191.28,2.90721128]
[1735504179307,8.40566351,191.42,191.33,8.40566351]
[1735504179506,8.40566351,191.4,191.34,3.04]
[1735504179909,2.6179,191.37,191.34,5.6583]
[1735504180310,2.6178,191.38,191.34,5.6583]
[1735504180813,3.1566,191.46,191.35,2.6181]
[1735504180814,8.40566351,191.42,191.35,2.6181]
[1735504181110,2.6177,191.39,191.35,2.6181]
[1735504181313,2.6177,191.39,191.35,11.02376351]
[1735504183309,8.40566351,191.42,191.35,8.40566351]
[1735504183510,8.40566351,191.42,191.38,2.6178]
[1735504183710,8.40566351,191.44,191.38,2.6178]
[1735504185126,2.6174,191.42,191.38,2.6178]
[1735504185419,8.40566351,191.44,191.37,8.40566351]
[1735504186418,8.40566351,191.44,191.4,2.6174]
[1735504187518,8.40566351,191.44,191.39,3.04]
[1735504188425,2.6174,191.41,191.39,3.04]
[1735504188619,8.40566351,191.49,191.39,11.44566351]
[1735504188827,8.40566351,191.49,191.42,8.40566351]
[1735504189127,2.6166,191.47,191.44,2.6169]
[1735504189326,8.40566351,191.47,191.39,3.04]
[1735504189521,8.40566351,191.47,191.4,8.40566351]
[1735504190527,2.6169,191.45,191.4,8.40566351]
[1735504190929,2.6169,191.45,191.41,2.6174]
[1735504196426,2.6169,191.45,191.42,2.6172]
[1735504196630,8.40566351,191.49,191.42,8.40566351]
[1735504197426,11.02196351,191.49,191.45,2.6168]
[1735504198726,8.40566351,191.49,191.45,2.6168]
[1735504198923,2.6165,191.48,191.45,2.6168]
[1735504200231,2.6167,191.47,191.44,3.04]
[1735504200432,8.40566351,191.49,191.44,3.04]
[1735504200836,2.6168,191.45,191.44,3.04]
[1735504201737,2.6167,191.46,191.44,3.04]
[1735504204936,8.40566351,191.45,191.29,12.50112749]
[1735504205136,8.40566351,191.45,191.38,8.40566351]
[1735504205329,8.40566351,191.45,191.39,3.04]
[1735504205330,2.6172,191.43,191.39,3.04]
[1735504205531,2.6172,191.43,191.39,5.6576]
[1735504205932,2.6174,191.41,191.38,3.04]
[1735504207439,2.6174,191.41,191.38,5.6578]
[1735504208642,2.6174,191.41,191.36,8.40566351]
[1735504208842,2.6174,191.41,191.37,5.6579]
[1735504209637,2.6174,191.41,191.37,3.04]
[1735504209842,2.6173,191.42,191.38,2.6178]
[1735504212543,2.6174,191.41,191.37,2.6179]
[1735504212733,9.90436351,191.43,191.36,8.40566351]
[1735504212955,2.6177,191.39,191.36,2.618]
[1735504215846,2.6176,191.4,191.36,2.618]
[1735504216648,1.4987,191.43,191.36,8.40566351]
[1735504216649,2.6174,191.42,191.36,8.40566351]
[1735504216842,1.4987,191.43,191.38,8.40566351]
[1735504217038,1.4987,191.43,191.39,3.04]
[1735504217237,1.4987,191.43,191.41,2.6174]
[1735504218244,1.4987,191.43,191.4,2.6175]
[1735504220048,4.1159,191.43,191.4,2.6175]
[1735504220550,8.40566351,191.41,191.37,3.04]
[1735504220740,8.40566351,191.41,191.34,3.04]
[1735504221649,2.6177,191.39,191.35,2.6182]
[1735504222051,2.6177,191.39,191.34,3.04]
[1735504222250,2.6177,191.39,191.36,2.618]
[1735504222746,2.6177,191.39,191.34,3.04]
[1735504222951,2.6177,191.39,191.35,2.6182]
[1735504225553,8.40566351,191.39,191.33,8.40566351]
[1735504225752,8.40566351,191.37,191.31,8.40566351]
[1735504225955,8.40566351,191.37,191.32,3.04]
[1735504226545,8.40566351,191.39,191.32,3.04]
[1735504227051,2.618,191.37,191.33,2.6184]
[1735504227349,2.618,191.37,191.32,3.04]
[1735504227656,2.618,191.37,191.34,2.6183]
[1735504234961,8.40566351,191.35,191.24,6.03325881]
[1735504235160,8.40566351,191.35,191.28,2.6191]
[1735504235161,2.6187,191.32,191.28,2.6191]
[1735504235756,2.6187,191.32,191.29,2.619]
[1735504236959,8.40566351,191.33,191.29,2.619]
[1735504237662,11.02416351,191.33,191.29,2.619]
[1735504237957,8.40566351,191.33,191.29,2.619]
[1735504238160,8.40566351,191.33,191.28,2.6191]
[1735504238457,2.6188,191.31,191.25,8.40566351]
[1735504238760,2.619,191.3,191.25,14.06526351]
[1735504238957,8.40566351,191.31,191.25,5.6596]
[1735504239164,8.40566351,191.31,191.25,2.6196]
[1735504239557,2.6191,191.29,191.25,2.6196]
[1735504245763,2.6191,191.29,191.24,2.90795881]
[1735504245968,2.6187,191.32,191.25,8.40566351]
[1735504246265,11.46236351,191.36,191.29,8.40566351]
[1735504246471,11.46236351,191.36,191.29,11.44566351]
[1735504246666,2.6182,191.35,191.31,2.6187]
[1735504250366,12.49426351,191.36,191.32,2.6185]
[1735504253473,9.87616351,191.36,191.32,2.6185]
[1735504253670,2.6182,191.35,191.32,2.6185]
[1735504258573,1.5057,191.4,191.31,8.40566351]
[1735504258779,9.91136351,191.4,191.33,8.40566351]
[1735504258970,8.40566351,191.4,191.34,3.04]
[1735504259171,2.6177,191.39,191.36,2.6181]
[1735504260475,56.42992505,191.42,191.34,3.04]
[1735504260476,57.50272505,191.42,191.35,8.40566351]
[1735504260671,8.40566351,191.44,191.37,8.40566351]
[1735504260876,8.40566351,191.42,191.35,8.40566351]
[1735504261077,8.40566351,191.42,191.39,2.6177]
[1735504261679,11.02296351,191.42,191.39,2.6177]
[1735504261878,11.02296351,191.42,191.35,8.40566351]
[1735504262084,8.40566351,191.42,191.35,8.40566351]
[1735504262676,2.6171,191.43,191.37,8.40566351]
[1735504263073,8.40566351,191.44,191.37,8.40566351]
[1735504263270,11.02266351,191.44,191.4,2.6175]
[1735504265279,2.617,191.44,191.4,2.6175]
[1735504265681,1.5784,191.49,191.39,11.44566351]
[1735504266006,8.40566351,191.47,191.39,11.44566351]
[1735504267075,2.6169,191.45,191.41,2.6174]
[1735504267776,8.40566351,191.45,191.39,11.44566351]
[1735504268077,8.40566351,191.45,191.39,3.04]
[1735504268675,2.6172,191.43,191.4,2.6175]
[1735504269180,8.40566351,191.45,191.39,3.04]
[1735504269379,11.02256351,191.45,191.41,2.6173]
[1735504270582,2.6173,191.42,191.39,3.04]
[1735504271181,8.40566351,191.43,191.39,5.6576]
[1735504271481,11.02286351,191.43,191.39,5.6576]
[1735504271976,1.5784,191.49,191.39,3.04]
[1735504272183,11.02256351,191.45,191.41,2.6174]
[1735504272778,2.617,191.44,191.41,2.6174]
[1735504273278,2.617,191.44,191.39,3.04]
[1735504273480,2.6176,191.4,191.26,5.2388]
[1735504273675,8.40566351,191.41,191.33,8.40566351]
[1735504273875,8.40566351,191.41,191.34,3.04]
[1735504274783,8.40566351,191.41,191.35,8.40566351]
[1735504275585,2.6176,191.4,191.37,2.6179]
[1735504275882,3.04,191.48,191.35,8.40566351]
[1735504276204,11.02296351,191.43,191.35,8.40566351]
[1735504276584,11.02296351,191.43,191.4,2.6176]
[1735504276792,8.40566351,191.43,191.4,2.6176]
[1735504277280,2.617,191.44,191.4,2.6176]
[1735504278482,8.40566351,191.45,191.4,2.6176]
[1735504278787,2.6172,191.43,191.4,2.6176]
[1735504279386,2.6172,191.43,191.39,3.04]
[1735504279586,2.6172,191.43,191.39,5.6577]
[1735504280278,11.02286351,191.43,191.39,5.6577]
[1735504282190,2.6173,191.42,191.39,5.6577]
[1735504284091,8.40566351,191.41,191.26,5.2388]
[1735504284281,8.40566351,191.41,191.3,8.40566351]
[1735504284282,8.40566351,191.37,191.3,8.40566351]
[1735504285288,8.40566351,191.37,191.31,3.04]
[1735504285494,8.40566351,191.35,191.3,3.04]
[1735504286392,2.6184,191.34,191.3,5.6588]
[1735504287289,2.6184,191.34,191.3,2.6188]
[1735504290987,8.40566351,191.35,191.3,2.6188]
[1735504291193,2.6185,191.33,191.29,3.04]
[1735504291388,2.6185,191.33,191.29,5.659]
[1735504294092,8.40566351,191.33,191.27,2.6193]
[1735504294287,8.40566351,191.33,191.27,5.6593]
[1735504294488,8.40566351,191.31,191.27,2.6193]
[1735504295497,2.619,191.3,191.27,2.6193]
[1735504298399,8.40566351,191.33,191.26,8.40566351]
[1735504298600,8.40566351,191.33,191.29,2.619]
[1735504298992,11.02426351,191.33,191.29,2.619]
[1735504299196,8.40566351,191.33,191.29,2.619]
[1735504300400,2.6187,191.32,191.29,2.619]
[1735504300793,8.40566351,191.33,191.27,2.6193]
[1735504300999,8.40566351,191.31,191.27,2.6193]
[1735504302317,2.619,191.3,191.26,2.6194]
[1735504302499,8.40566351,191.29,191.24,3.04]
[1735504303495,2.6192,191.28,191.24,5.6596]
[1735504305308,2.6191,191.29,191.25,2.6196]
[1735504306601,2.6194,191.27,191.23,2.6199]
[1735504306902,8.40566351,191.29,191.21,11.44566351]
[1735504307705,2.6191,191.29,191.25,2.6196]
[1735504307901,11.02476351,191.29,191.25,2.6196]
[1735504309909,2.6196,191.26,191.21,3.04]
[1735504310307,2.6196,191.26,191.21,2.62]
[1735504310607,2.6199,191.23,191.17,8.40566351]
[1735504310904,2.6199,191.23,191.19,2.6203]
[1735504311306,2.6198,191.24,191.17,8.40566351]
[1735504311504,2.6198,191.24,191.2,2.6203]
[1735504312706,1.587,191.25,191.19,8.40566351]
[1735504312905,8.40566351,191.28,191.21,8.40566351]
[1735504314211,8.40566351,191.28,191.25,2.6196]
[1735504317103,2.6191,191.29,191.26,2.6195]
[1735504319204,8.40566351,191.28,191.18,3.04]
[1735504319403,8.40566351,191.24,191.17,11.44566351]
[1735504319707,8.40566351,191.24,191.2,2.6202]
[1735504319708,11.02546351,191.24,191.2,2.6202]
[1735504319908,8.40566351,191.22,191.2,2.6202]
[1735504320713,8.40566351,191.22,191.19,2.6204]
[1735504320914,8.40566351,191.2,191.19,2.6204]
[1735504321303,8.40566351,191.2,191.1,3.1151]
[1735504321511,8.40566351,191.18,191.12,8.40566351]
[1735504321711,2.6196,191.26,191.17,2.6206]
[1735504321910,8.40566351,191.24,191.18,3.04]
[1735504322111,8.40566351,191.22,191.18,3.04]
[1735504322514,8.40566351,191.22,191.19,2.6204]
[1735504323614,8.40566351,191.22,191.18,3.04]
[1735504323917,8.40566351,191.22,191.2,2.6203]
[1735504330424,8.40566351,191.22,191.18,3.04]
[1735504330919,2.6203,191.21,191.17,2.6206]
[1735504331424,8.40566351,191.22,191.16,3.04]
[1735504331622,2.6203,191.2,191.16,5.6608]
[1735504331825,11.02596351,191.2,191.16,5.6608]
[1735504332227,2.6204,191.19,191.16,5.6608]
[1735504333725,8.40566351,191.18,191.16,5.6608]
[1735504333926,11.02626351,191.18,191.16,3.04]
[1735504334125,8.40566351,191.18,191.16,3.04]
[1735504334824,8.40566351,191.18,191.15,2.621]
[1735504336224,2.9928,191.27,191.14,8.40566351]
[1735504336427,2.9928,191.27,191.16,8.40566351]
[1735504336620,8.40566351,191.24,191.16,8.40566351]
[1735504336823,8.40566351,191.24,191.18,2.6205]
[1735504337024,8.40566351,191.24,191.19,3.04]
[1735504337426,8.40566351,191.24,191.21,2.62]
[1735504338125,8.40566351,191.24,191.2,2.6203]
[1735504338322,8.40566351,191.22,191.2,2.6203]
[1735504338531,8.40566351,191.22,191.19,3.04]
[1735504339122,8.40566351,191.22,191.19,5.6603]
[1735504339324,2.9928,191.27,191.19,3.04]
[1735504339523,8.40566351,191.24,191.19,3.04]
[1735504339722,8.40566351,191.24,191.21,2.6201]
[1735504340734,8.40566351,191.22,191.19,3.04]
[1735504341127,8.40566351,191.2,191.19,3.04]
[1735504341427,8.40566351,191.2,191.17,2.6206]
[1735504342832,8.40566351,191.2,191.14,3.04]
[1735504343034,8.40566351,191.16,191.12,3.04]
[1735504344237,8.40566351,191.16,191.07,1.5479]
[1735504344538,8.40566351,191.16,191.13,2.6212]
[1735504345139,11.02636351,191.18,191.13,2.6212]
[1735504346038,2.6204,191.2,191.15,2.6209]
[1735504346238,8.40566351,191.19,191.12,8.40566351]
[1735504347541,8.40566351,191.19,191.16,2.6208]
[1735504348441,8.40566351,191.19,191.14,3.04]
[1735504348641,11.02606351,191.19,191.15,2.621]
[1735504350548,60.15373417,191.27,191.13,8.40566351]
[1735504350743,8.40566351,191.23,191.15,8.40566351]
[1735504351150,8.40566351,191.23,191.2,2.6202]
[1735504354549,11.02556351,191.23,191.2,2.6202]
[1735504355050,8.40566351,191.21,191.2,2.6202]
[1735504355254,8.40566351,191.21,191.18,3.04]
[1735504355753,8.40566351,191.21,191.19,2.6204]
[1735504356456,11.02586351,191.21,191.18,5.6605]
[1735504360359,2.6203,191.2,191.18,3.04]
[1735504362156,2.6203,191.2,191.16,5.6608]
[1735504362550,11.02616351,191.19,191.15,3.04]
[1735504362750,11.02616351,191.19,191.11,8.40566351]
[1735504362751,11.02616351,191.19,191.14,3.04]
[1735504363656,11.02616351,191.19,191.15,2.6209]
[1735504364061,2.6206,191.18,191.15,2.6209]
[1735504364258,2.6206,191.18,191.13,2.6212]
[1735504364456,2.6206,191.18,191.11,8.40566351]
[1735504364652,2.6206,191.18,191.13,2.6212]
[1735504364857,2.6207,191.17,191.13,2.6212]
[1735504365053,2.6207,191.17,191.11,8.40566351]
[1735504365256,8.40566351,191.19,191.14,2.6211]
[1735504365565,8.40566351,191.17,191.14,2.6211]
[1735504366563,8.40566351,191.17,191.12,2.6213]
[1735504367565,2.6209,191.16,191.13,2.6213]
[1735504368268,2.6206,191.19,191.15,2.621]
[1735504368461,11.02626351,191.19,191.15,2.621]
[1735504368965,11.02626351,191.19,191.12,3.04]
[1735504369166,11.02626351,191.19,191.16,2.6208]
[1735504369468,1.4761,191.22,191.12,3.04]
[1735504369667,8.40566351,191.21,191.18,2.6205]
[1735504369869,8.40566351,191.21,191.17,3.04]
[1735504370865,2.9928,191.27,191.17,3.04]
[1735504370866,8.40566351,191.23,191.17,3.04]
[1735504371867,8.40566351,191.23,191.2,2.6202]
[1735504372365,8.40566351,191.23,191.21,2.6201]
[1735504372566,58.76963417,191.28,191.22,3.04]
[1735504372763,57.16093417,191.28,191.23,11.44566351]
[1735504372964,57.16093417,191.28,191.27,2.6193]
[1735504374071,8.40566351,191.32,191.28,2.6191]
[1735504374269,8.40566351,191.32,191.29,3.04]
[1735504374472,11.02476351,191.29,191.24,5.6597]
[1735504374772,8.40566351,191.26,191.25,3.04]
[1735504375364,8.40566351,191.26,191.24,2.6197]
[1735504375567,8.40566351,191.26,191.25,3.04]
[1735504376175,8.40566351,191.26,191.21,3.04]
[1735504376377,8.40566351,191.23,191.21,3.04]
[1735504376567,11.02566351,191.23,191.19,3.04]
[1735504376768,8.40566351,191.21,191.17,3.04]
[1735504377270,8.40566351,191.19,191.17,3.04]
[1735504378570,71.01852562,191.3,191.17,3.04]
[1735504378771,8.40566351,191.26,191.18,8.40566351]
[1735504379364,8.40566351,191.26,191.21,2.62]
[1735504379569,8.40566351,191.26,191.22,3.04]
[1735504380572,8.40566351,191.24,191.22,5.66]
[1735504380972,8.40566351,191.26,191.23,2.6199]
[1735504382478,8.40566351,191.26,191.24,2.6197]
[1735504385381,1.5161,191.3,191.22,11.44566351]
[1735504385581,8.40566351,191.29,191.22,11.44566351]
[1735504385780,8.40566351,191.29,191.27,2.6192]
[1735504385984,8.40566351,191.29,191.27,5.6592]
[1735504391478,8.40566351,191.29,191.16,1.5776]
[1735504391688,8.40566351,191.25,191.18,8.40566351]
[1735504392487,8.40566351,191.25,191.22,2.6199]
[1735504392687,8.40566351,191.25,191.22,5.6599]
[1735504393289,8.40566351,191.25,191.21,2.6201]
[1735504393583,8.40566351,191.23,191.22,3.04]
[1735504395486,8.40566351,191.23,191.16,8.40566351]
[1735504395704,8.40566351,191.21,191.14,8.40566351]
[1735504395987,8.40566351,191.17,191.11,8.40566351]
[1735504396194,8.40566351,191.17,191.15,3.04]
[1735504396589,8.40566351,191.17,191.09,8.40566351]
[1735504396785,11.02636351,191.17,191.1,3.06]
[1735504397092,11.02636351,191.17,191.11,3.06]
[1735504397591,11.02636351,191.17,191.13,2.6213]
[1735504397592,8.40566351,191.17,191.13,2.6213]
[1735504398193,2.6206,191.18,191.11,3.06]
[1735504398194,3.0954,191.25,191.11,3.06]
[1735504398493,8.40566351,191.18,191.15,2.621]
[1735504399783,8.40566351,191.18,191.11,11.46566351]
[1735504399988,8.40566351,191.18,191.14,2.6211]
[1735504400892,8.40566351,191.18,191.11,3.06]
[1735504401089,11.02636351,191.18,191.11,3.06]
[1735504401494,11.02636351,191.18,191.13,2.6213]
[1735504401696,8.40566351,191.16,191.11,3.06]
[1735504401995,8.40566351,191.16,191.11,2.6215]
[1735504402195,8.40566351,191.16,191.11,3.06]
[1735504403494,8.40566351,191.16,191.09,8.40566351]
[1735504403495,8.40566351,191.14,191.06,2.91055942]
[1735504403799,8.40566351,191.14,191.07,3.06]
[1735504404095,11.02686351,191.14,191.09,2.6217]
[1735504404293,8.40566351,191.12,190.97,7.26322749]
[1735504404498,8.40566351,191.1,191.02,8.40566351]
[1735504405197,8.40566351,191.1,191.04,8.40566351]
[1735504405402,6.0424,191.15,191.03,3.06]
[1735504405403,8.40566351,191.09,191.03,3.06]
[1735504405898,8.40566351,191.05,190.97,2.6234]
[1735504406196,1.5266,191.08,190.94,7.26322749]
[1735504406397,4.1774,191.05,190.98,2.6232]
[1735504406604,1.5549,191.05,190.93,3.06]
[1735504406905,2.6228,191.02,190.95,2.6236]
[1735504407204,1.5549,191.05,190.94,3.06]
[1735504407501,1.5549,191.05,190.94,16.24918219]
[1735504407702,1.5549,191.05,190.97,13.18918219]
[1735504408005,1.5549,191.05,191.02,2.6227]
[1735504408303,1.5549,191.05,191.0,3.06]
[1735504409102,1.5549,191.05,191.01,2.6229]
[1735504409298,1.5549,191.05,191.0,3.06]
[1735504410104,1.5549,191.05,190.99,2.6231]
[1735504410306,1.5027,191.07,191.0,3.06]
[1735504411205,1.5027,191.07,191.02,2.6227]
[1735504412212,1.5027,191.07,191.03,2.6226]
[1735504412504,1.5266,191.08,191.0,3.06]
[1735504413406,1.5266,191.08,191.02,2.6227]
[1735504413609,1.5629,191.11,191.0,16.24918219]
[1735504414512,1.5629,191.11,191.03,13.18918219]
[1735504414715,13.18918219,191.15,191.03,13.18918219]
[1735504415211,13.18918219,191.15,191.1,2.6216]
[1735504415514,1.5115,191.17,191.1,3.06]
[1735504415714,13.18918219,191.15,191.1,3.06]
[1735504416316,15.81028219,191.15,191.1,3.06]
[1735504416708,13.18918219,191.15,191.1,3.06]
[1735504418519,2.6212,191.14,191.1,3.06]
[1735504418718,13.18918219,191.15,191.1,3.06]
[1735504419113,13.18918219,191.15,191.0,13.18918219]
[1735504419311,13.18918219,191.15,191.01,3.06]
[1735504419713,2.6214,191.13,191.08,2.622]
[1735504419921,2.6214,191.13,191.09,3.06]
[1735504420218,2.6214,191.13,191.08,5.682]
[1735504421610,13.18918219,191.12,191.05,3.06]
[1735504422421,2.6216,191.11,191.06,2.6222]
[1735504423011,15.81058219,191.12,191.06,2.6222]
[1735504423236,13.18918219,191.12,191.05,3.06]
[1735504423720,13.18918219,191.12,191.07,2.6221]
[1735504423922,2.6213,191.14,191.05,3.06]
[1735504424923,2.6213,191.14,191.08,2.6219]
[1735504426127,13.18918219,191.15,191.08,2.6219]
[1735504426423,2.6213,191.13,191.08,2.6219]
[1735504426624,13.18918219,191.12,191.08,2.6219]
[1735504430229,13.18918219,191.12,191.07,3.06]
[1735504430437,13.18918219,191.12,191.09,2.6218]
[1735504434229,8.43439282,191.11,191.09,2.6218]
[1735504435337,2.621,191.16,191.12,2.6214]
[1735504435536,8.43439282,191.14,191.12,2.6214]
[1735504435927,1.5115,191.17,191.08,8.43439282]
[1735504436134,8.43439282,191.15,191.08,8.43439282]
[1735504436634,8.43439282,191.15,191.13,2.6212]
[1735504437031,8.43439282,191.15,191.09,2.6218]
[1735504437238,8.43439282,191.12,191.07,3.06]
[1735504437633,8.43439282,191.14,191.07,3.06]
[1735504438144,8.43439282,191.14,191.07,11.49439282]
[1735504438334,8.43439282,191.14,191.11,2.6215]
[1735504439431,8.43439282,191.14,191.07,3.06]
[1735504439636,8.43439282,191.12,191.07,3.06]
[1735504440844,8.43439282,191.14,191.07,11.49439282]
[1735504441140,8.43439282,191.16,191.09,8.43439282]
[1735504441734,8.43439282,191.16,191.07,11.49439282]
[1735504442540,8.43439282,191.16,191.14,2.621]
[1735504442731,8.43439282,191.16,191.07,11.49439282]
[1735504442936,8.43439282,191.13,191.07,11.49439282]
[1735504443545,8.43439282,191.13,191.11,2.6216]
[1735504443742,8.43439282,191.13,191.07,11.49439282]
[1735504444633,8.43439282,191.15,191.07,11.49439282]
[1735504444836,2.6208,191.17,191.12,2.6214]
[1735504445141,8.43439282,191.15,191.12,2.6214]
[1735504445535,8.43439282,191.15,191.07,11.49439282]
[1735504446334,11.05539282,191.15,191.07,3.06]
[1735504446545,8.43439282,191.13,191.07,3.06]
[1735504447235,8.43439282,191.13,191.07,3.08]
[1735504447434,11.05579282,191.13,191.09,2.6218]
[1735504448647,8.43439282,191.11,191.09,2.6218]
[1735504448844,8.43439282,191.11,191.04,8.43439282]
[1735504449048,8.43439282,191.11,191.07,2.622]
[1735504449242,8.43439282,191.11,191.06,3.08]
[1735504449742,8.43439282,191.09,190.99,3.1808]
[1735504449942,8.43439282,191.07,190.99,3.1808]
[1735504450145,8.43439282,191.07,191.04,2.6225]
[1735504450944,8.43439282,191.07,191.0,3.08]
[1735504451147,8.43439282,191.05,191.01,3.08]
[1735504451342,1.5021,191.11,190.95,8.43439282]
[1735504451348,8.43439282,191.03,190.95,8.43439282]
[1735504451541,8.43439282,191.01,190.96,3.08]
[1735504451747,8.43439282,191.01,190.98,2.6233]
[1735504453654,8.43439282,191.01,190.96,5.7035]
[1735504453854,8.43439282,191.01,190.96,3.08]
[1735504454258,17.7599697,191.04,190.96,3.08]
[1735504454456,2.6227,191.03,190.97,2.6234]
[1735504455354,2.6229,191.02,190.95,5.7036]
[1735504456054,2.6229,191.02,190.94,3.08]
[1735504456353,2.6229,191.01,190.96,2.6236]
[1735504456551,17.7599697,191.04,190.94,3.08]
[1735504456754,4.5678,191.04,190.94,3.08]
[1735504457158,4.5678,191.04,190.91,13.1921697]
[1735504457348,4.5678,191.04,190.92,3.06]
[1735504458058,4.5678,191.04,190.99,2.6231]
[1735504460159,4.5678,191.04,191.0,2.623]
[1735504460355,4.5678,191.04,190.97,3.06]
[1735504461564,4.5678,191.04,191.01,2.6228]
[1735504462461,4.5678,191.04,191.0,2.6231]
[1735504463261,4.5678,191.04,190.97,3.06]
[1735504463460,2.6231,191.0,190.97,3.06]
[1735504463661,2.6231,191.0,190.93,3.06]
[1735504464358,15.8153697,190.99,190.85,5.69465857]
[1735504464563,13.1921697,190.99,190.86,16.2521697]
[1735504464859,13.1921697,190.99,190.85,5.69465857]
[1735504465071,2.6236,190.97,190.86,16.2521697]
[1735504465261,13.1921697,190.99,190.86,13.1921697]
[1735504465462,13.1921697,190.99,190.91,2.6242]
[1735504465962,13.1921697,190.99,190.85,17.38412827]
[1735504466163,2.6238,190.96,190.9,2.6244]
[1735504466366,13.1921697,190.99,190.9,2.6244]
[1735504466662,2.6237,190.96,190.9,2.6244]
[1735504466859,2.6237,190.96,190.86,3.06]
[1735504467165,13.1921697,190.95,190.82,3.06]
[1735504467364,1.5945,190.94,190.82,3.06]
[1735504467564,1.5945,190.94,190.89,2.6245]
[1735504467960,1.5945,190.94,190.83,13.1921697]
[1735504468154,1.5945,190.94,190.86,2.625]
[1735504468360,2.6242,190.92,190.83,13.1921697]
[1735504468560,1.5945,190.94,190.83,13.1921697]
[1735504468961,3.208,190.95,190.92,2.6241]
[1735504469261,3.208,190.95,190.88,3.06]
[1735504469470,3.208,190.95,190.9,2.6243]
[1735504470965,13.1921697,190.92,190.77,2.91477455]
[1735504471165,13.1921697,190.92,190.77,19.16694425]
[1735504471465,13.1921697,190.92,190.77,16.10694425]
[1735504471656,2.6244,190.9,190.84,2.6251]
[1735504472271,15.8167697,190.89,190.84,2.6251]
[1735504472463,13.1921697,190.86,190.73,13.1921697]